[Event "FIDE World Rapid Chess Championship 2021"]
[White "Anton Guijarro, David"]
[Black "Rapport, Richard"]
[WhiteFideId "2285525"]
[BlackFideId "738590"]
[WhiteElo "2627"]
[BlackElo "2750"]
[Result "1/2-1/2"]
[Round "08"]
[TimeControl "900+10"]
[Date "2021.12.27"]
[WhiteClock "0:01:13"]
[BlackClock "0:01:50"]

1. Nf3 {[%clk 0:15:00]}  Nf6 {[%clk 0:15:00]} 2. c4 {[%clk 0:15:00]}  g6 {[%clk 0:15:00]} 3. Nc3 {[%clk 0:15:15]}  Bg7 {[%clk 0:15:42]} 4. e4 {[%clk 0:15:15]}  d6 {[%clk 0:15:42]} 5. d4 {[%clk 0:15:15]}  O-O {[%clk 0:15:42]} 6. Be2 {[%clk 0:15:15]}  e5 {[%clk 0:15:44]} 7. d5 {[%clk 0:14:04]}  a5 {[%clk 0:15:44]} 8. O-O {[%clk 0:14:04]}  Na6 {[%clk 0:15:44]} 9. Re1 {[%clk 0:14:04]}  Nc5 {[%clk 0:15:44]} 10. Bf1 {[%clk 0:14:04]}  Bd7 {[%clk 0:15:44]} 11. b3 {[%clk 0:14:04]}  c6 {[%clk 0:15:44]} 12. Ba3 {[%clk 0:12:59]}  Qb6 {[%clk 0:14:27]} 13. Rb1 {[%clk 0:12:59]}  Qa7 {[%clk 0:13:14]} 14. h3 {[%clk 0:11:53]}  cxd5 {[%clk 0:10:55]} 15. cxd5 {[%clk 0:09:59]}  Rfc8 {[%clk 0:10:55]} 16. Nd2 {[%clk 0:09:59]}  Bh6 {[%clk 0:10:55]} 17. Nc4 {[%clk 0:08:07]}  b5 {[%clk 0:08:57]} 18. Nxd6 {[%clk 0:08:07]}  b4 {[%clk 0:08:57]} 19. Ncb5 {[%clk 0:08:07]}  Bxb5 {[%clk 0:08:57]} 20. Nxb5 {[%clk 0:08:07]}  Qb6 {[%clk 0:08:57]} 21. Bc1 {[%clk 0:06:55]}  Bxc1 {[%clk 0:08:30]} 22. Qxc1 {[%clk 0:06:55]}  Ncxe4 {[%clk 0:08:30]} 23. Qe3 {[%clk 0:06:55]}  Qxe3 {[%clk 0:07:23]} 24. Rxe3 {[%clk 0:03:40]}  Rc5 {[%clk 0:07:23]} 25. Rd1 {[%clk 0:03:40]}  Rd8 {[%clk 0:07:23]} 26. Bc4 {[%clk 0:03:13]}  Kg7 {[%clk 0:05:10]} 27. g4 {[%clk 0:03:13]}  Rxb5 {[%clk 0:04:45]} 28. Bxb5 {[%clk 0:01:26]}  Nc3 {[%clk 0:04:45]} 29. Rxc3 {[%clk 0:01:26]}  bxc3 {[%clk 0:04:45]} 30. Bc4 {[%clk 0:01:26]}  Nxd5 {[%clk 0:04:45]} 31. Bxd5 {[%clk 0:01:26]}  e4 {[%clk 0:01:57]} 32. Kf1 {[%clk 0:01:38]}  f5 {[%clk 0:01:57]} 33. gxf5 {[%clk 0:01:38]}  c2 {[%clk 0:01:57]} 34. Rc1 {[%clk 0:01:38]}  Rxd5 {[%clk 0:01:57]} 35. f6+ {[%clk 0:01:38]}  Kxf6 {[%clk 0:01:57]} 36. Rxc2 {[%clk 0:01:38]}  h5 {[%clk 0:01:50]} 37. Kg2 {[%clk 0:01:13]}  Ke5 {[%clk 0:01:50]} 1/2-1/2


[Site "http://www.Chess.com"]

[Event "FIDE World Rapid Chess Championship 2021"]
[White "Korobov, Anton"]
[Black "Gareyev, Timur"]
[WhiteFideId "14105730"]
[BlackFideId "14200937"]
[WhiteElo "2689"]
[BlackElo "2578"]
[Result "0-1"]
[Round "08"]
[TimeControl "900+10"]
[Date "2021.12.27"]
[WhiteClock "0:01:23"]
[BlackClock "0:03:47"]

1. d4 {[%clk 0:15:00]}  e6 {[%clk 0:15:30]} 2. c4 {[%clk 0:14:37]}  d5 {[%clk 0:15:30]} 3. Nc3 {[%clk 0:14:37]}  c5 {[%clk 0:15:30]} 4. e3 {[%clk 0:14:37]}  Nf6 {[%clk 0:15:30]} 5. Nf3 {[%clk 0:14:37]}  a6 {[%clk 0:15:30]} 6. dxc5 {[%clk 0:14:37]}  Bxc5 {[%clk 0:15:30]} 7. a3 {[%clk 0:14:37]}  O-O {[%clk 0:15:30]} 8. b4 {[%clk 0:14:37]}  Bd6 {[%clk 0:15:30]} 9. cxd5 {[%clk 0:14:37]}  exd5 {[%clk 0:13:17]} 10. Bb2 {[%clk 0:13:22]}  Nc6 {[%clk 0:13:17]} 11. Be2 {[%clk 0:13:22]}  Bf5 {[%clk 0:13:17]} 12. O-O {[%clk 0:13:22]}  Re8 {[%clk 0:13:17]} 13. Rc1 {[%clk 0:13:22]}  h6 {[%clk 0:11:52]} 14. g3 {[%clk 0:13:23]}  Bf8 {[%clk 0:11:52]} 15. Re1 {[%clk 0:12:07]}  Rc8 {[%clk 0:10:19]} 16. Nd4 {[%clk 0:12:07]}  Bd7 {[%clk 0:08:07]} 17. Nxc6 {[%clk 0:12:07]}  Bxc6 {[%clk 0:08:07]} 18. b5 {[%clk 0:10:11]}  axb5 {[%clk 0:08:04]} 19. Nxb5 {[%clk 0:10:11]}  Ne4 {[%clk 0:08:07]} 20. Nd4 {[%clk 0:07:43]}  Qa5 {[%clk 0:08:07]} 21. Bg4 {[%clk 0:07:10]}  Ba4 {[%clk 0:05:58]} 22. Qe2 {[%clk 0:03:44]}  Rc4 {[%clk 0:06:03]} 23. Bf5 {[%clk 0:03:44]}  Nc5 {[%clk 0:04:46]} 24. Bb1 {[%clk 0:02:46]}  Qb6 {[%clk 0:04:46]} 25. Ba1 {[%clk 0:02:46]}  Qa6 {[%clk 0:04:46]} 26. Qf3 {[%clk 0:02:46]}  Rd8 {[%clk 0:03:47]} 27. Qf5 {[%clk 0:01:23]}  g6 {[%clk 0:03:47]} 28. Qf4 {[%clk 0:01:23]}  Ne6 {[%clk 0:03:47]} 29. Qh4 {[%clk 0:01:23]}  Ng5 {[%clk 0:03:47]} 30. Qf4 {[%clk 0:01:23]}  Nh3+ {[%clk 0:03:47]} 0-1


[Site "http://www.Chess.com"]

[Event "FIDE World Rapid Chess Championship 2021"]
[White "Van Foreest, Jorden"]
[Black "Firouzja, Alireza"]
[WhiteFideId "1039784"]
[BlackFideId "12573981"]
[WhiteElo "2563"]
[BlackElo "2656"]
[Result "1/2-1/2"]
[Round "08"]
[TimeControl "900+10"]
[Date "2021.12.27"]
[WhiteClock "0:01:17"]
[BlackClock "0:00:02"]

1. e4 {[%clk 0:15:00]}  e5 {[%clk 0:12:32]} 2. Nf3 {[%clk 0:15:26]}  Nc6 {[%clk 0:12:32]} 3. Bc4 {[%clk 0:15:26]}  Nf6 {[%clk 0:12:32]} 4. d3 {[%clk 0:15:26]}  Bc5 {[%clk 0:12:32]} 5. c3 {[%clk 0:15:26]}  d6 {[%clk 0:12:32]} 6. O-O {[%clk 0:15:26]}  O-O {[%clk 0:12:32]} 7. Re1 {[%clk 0:15:26]}  a5 {[%clk 0:12:32]} 8. Bg5 {[%clk 0:15:26]}  h6 {[%clk 0:11:45]} 9. Bh4 {[%clk 0:14:31]}  g5 {[%clk 0:11:45]} 10. Bg3 {[%clk 0:14:31]}  Ba7 {[%clk 0:11:45]} 11. Nbd2 {[%clk 0:14:31]}  Ne8 {[%clk 0:11:45]} 12. a3 {[%clk 0:14:31]}  Qf6 {[%clk 0:10:12]} 13. b4 {[%clk 0:14:40]}  Ne7 {[%clk 0:07:31]} 14. h3 {[%clk 0:14:30]}  Ng6 {[%clk 0:07:31]} 15. d4 {[%clk 0:12:07]}  h5 {[%clk 0:07:31]} 16. Nf1 {[%clk 0:12:07]}  g4 {[%clk 0:07:31]} 17. hxg4 {[%clk 0:12:07]}  hxg4 {[%clk 0:07:31]} 18. N3h2 {[%clk 0:11:19]}  Qg5 {[%clk 0:06:00]} 19. bxa5 {[%clk 0:11:19]}  Nf6 {[%clk 0:06:00]} 20. Rb1 {[%clk 0:09:23]}  Kg7 {[%clk 0:05:45]} 21. Rb5 {[%clk 0:09:23]}  Re8 {[%clk 0:04:33]} 22. Qd3 {[%clk 0:07:41]}  c6 {[%clk 0:04:33]} 23. Rbb1 {[%clk 0:07:41]}  d5 {[%clk 0:04:33]} 24. exd5 {[%clk 0:07:24]}  Bf5 {[%clk 0:02:46]} 25. Qe3 {[%clk 0:07:24]}  Qxe3 {[%clk 0:02:46]} 26. Nxe3 {[%clk 0:07:24]}  Bxb1 {[%clk 0:02:46]} 27. Rxb1 {[%clk 0:07:24]}  cxd5 {[%clk 0:03:42]} 28. Nxd5 {[%clk 0:05:04]}  Nxd5 {[%clk 0:03:42]} 29. Bxd5 {[%clk 0:05:04]}  Rad8 {[%clk 0:03:42]} 30. Bxb7 {[%clk 0:04:35]}  exd4 {[%clk 0:01:23]} 31. cxd4 {[%clk 0:04:35]}  Rxd4 {[%clk 0:01:23]} 32. Nf1 {[%clk 0:04:35]}  Nf4 {[%clk 0:01:23]} 33. Ba6 {[%clk 0:04:35]}  Ne2+ {[%clk 0:01:57]} 34. Bxe2 {[%clk 0:02:13]}  Rxe2 {[%clk 0:01:57]} 35. Bc7 {[%clk 0:02:13]}  Ra4 {[%clk 0:01:57]} 36. Bb6 {[%clk 0:02:13]}  Bb8 {[%clk 0:01:57]} 37. Ne3 {[%clk 0:01:55]}  Ra2 {[%clk 0:00:36]} 38. a6 {[%clk 0:01:55]}  Kg6 {[%clk 0:00:36]} 39. Bc5 {[%clk 0:01:55]}  Be5 {[%clk 0:00:36]} 40. a7 {[%clk 0:01:55]}  g3 {[%clk 0:00:36]} 41. fxg3 {[%clk 0:01:17]}  R2xa3 {[%clk 0:00:02]} 42. Rb6+ {[%clk 0:01:17]}  f6 {[%clk 0:00:02]} 43. Bxa3 {[%clk 0:01:17]}  Rxa3 {[%clk 0:00:02]} 44. Kf1 {[%clk 0:01:17]}  Rxa7 {[%clk 0:00:02]} 45. Ng4 {[%clk 0:01:17]}  Bd4 {[%clk 0:00:02]} 1/2-1/2


[Site "http://www.Chess.com"]

[Event "FIDE World Rapid Chess Championship 2021"]
[White "Niemann, Hans Moke"]
[Black "Dubov, Daniil"]
[WhiteFideId "2093596"]
[BlackFideId "24126055"]
[WhiteElo "2327"]
[BlackElo "2735"]
[Result "0-1"]
[Round "08"]
[TimeControl "900+10"]
[Date "2021.12.27"]
[WhiteClock "0:09:37"]
[BlackClock "0:00:14"]

1. Nf3 {[%clk 0:15:00]}  d5 {[%clk 0:15:00]} 2. d4 {[%clk 0:15:00]}  Nf6 {[%clk 0:15:00]} 3. c4 {[%clk 0:15:00]}  c6 {[%clk 0:15:00]} 4. e3 {[%clk 0:15:42]}  Bf5 {[%clk 0:16:01]} 5. Nc3 {[%clk 0:15:42]}  e6 {[%clk 0:16:01]} 6. Nh4 {[%clk 0:15:42]}  Bg6 {[%clk 0:16:01]} 7. Qb3 {[%clk 0:15:42]}  Qc7 {[%clk 0:15:13]} 8. Bd2 {[%clk 0:15:18]}  Be7 {[%clk 0:15:13]} 9. Nxg6 {[%clk 0:15:18]}  hxg6 {[%clk 0:15:13]} 10. g3 {[%clk 0:15:18]}  Nbd7 {[%clk 0:15:13]} 11. Rc1 {[%clk 0:15:18]}  Nb6 {[%clk 0:15:13]} 12. c5 {[%clk 0:15:18]}  Nbd7 {[%clk 0:15:13]} 13. Qc2 {[%clk 0:15:18]}  e5 {[%clk 0:15:13]} 14. b4 {[%clk 0:15:18]}  a6 {[%clk 0:15:13]} 15. Bg2 {[%clk 0:15:18]}  e4 {[%clk 0:15:13]} 16. h4 {[%clk 0:14:22]}  Nf8 {[%clk 0:15:02]} 17. Bh3 {[%clk 0:14:22]}  Ne6 {[%clk 0:15:02]} 18. Ke2 {[%clk 0:14:22]}  Qd7 {[%clk 0:14:10]} 19. Rcg1 {[%clk 0:12:39]}  Kf8 {[%clk 0:14:10]} 20. Kd1 {[%clk 0:12:39]}  Kg8 {[%clk 0:14:10]} 21. Ne2 {[%clk 0:12:39]}  g5 {[%clk 0:12:25]} 22. hxg5 {[%clk 0:12:20]}  Rxh3 {[%clk 0:12:25]} 23. Rxh3 {[%clk 0:12:20]}  Nxg5 {[%clk 0:12:25]} 24. Rhh1 {[%clk 0:12:20]}  Ng4 {[%clk 0:11:38]} 25. Rf1 {[%clk 0:12:00]}  Nf3 {[%clk 0:11:38]} 26. Kc1 {[%clk 0:12:00]}  a5 {[%clk 0:11:38]} 27. Kb1 {[%clk 0:12:00]}  axb4 {[%clk 0:10:19]} 28. Bxb4 {[%clk 0:10:24]}  b6 {[%clk 0:10:19]} 29. Ka1 {[%clk 0:10:24]}  bxc5 {[%clk 0:10:19]} 30. Bxc5 {[%clk 0:10:24]}  Bxc5 {[%clk 0:10:19]} 31. dxc5 {[%clk 0:10:24]}  Nge5 {[%clk 0:10:19]} 32. Nd4 {[%clk 0:10:24]}  Nxd4 {[%clk 0:08:14]} 33. exd4 {[%clk 0:11:01]}  Nd3 {[%clk 0:08:14]} 34. Rh4 {[%clk 0:11:01]}  Nb4 {[%clk 0:08:14]} 35. Qb3 {[%clk 0:11:01]}  Rxa2+ {[%clk 0:06:13]} 36. Kb1 {[%clk 0:10:56]}  Qa7 {[%clk 0:06:13]} 37. Rfh1 {[%clk 0:11:05]}  Ra1+ {[%clk 0:06:13]} 38. Kb2 {[%clk 0:11:05]}  Nd3+ {[%clk 0:06:13]} 39. Kc2 {[%clk 0:11:05]}  Ne1+ {[%clk 0:04:23]} 40. Kb2 {[%clk 0:11:15]}  Nd3+ {[%clk 0:04:23]} 41. Kc2 {[%clk 0:11:15]}  Rxh1 {[%clk 0:04:23]} 42. Rxh1 {[%clk 0:11:15]}  Nxf2 {[%clk 0:04:23]} 43. Rb1 {[%clk 0:10:52]}  Qa6 {[%clk 0:03:17]} 44. Kd2 {[%clk 0:10:52]}  Ng4 {[%clk 0:03:17]} 45. Rh1 {[%clk 0:10:52]}  Qc8 {[%clk 0:03:17]} 46. Qb6 {[%clk 0:10:52]}  Nh6 {[%clk 0:01:35]} 47. Rb1 {[%clk 0:10:18]}  Qf5 {[%clk 0:01:35]} 48. Kc3 {[%clk 0:10:18]}  Qf3+ {[%clk 0:01:35]} 49. Kb2 {[%clk 0:10:18]}  Qf2+ {[%clk 0:01:35]} 50. Ka3 {[%clk 0:10:18]}  Qxg3+ {[%clk 0:00:34]} 51. Rb3 {[%clk 0:09:41]}  Qg6 {[%clk 0:00:34]} 52. Qc7 {[%clk 0:09:41]}  Qf6 {[%clk 0:00:34]} 53. Qd6 {[%clk 0:09:41]}  Nf5 {[%clk 0:00:34]} 54. Qxf6 {[%clk 0:09:37]}  gxf6 {[%clk 0:00:14]} 55. Rb6 {[%clk 0:09:37]}  e3 {[%clk 0:00:14]} 56. Rb8+ {[%clk 0:09:37]}  Kg7 {[%clk 0:00:14]} 57. Kb2 {[%clk 0:09:37]}  Nxd4 {[%clk 0:00:14]} 58. Re8 {[%clk 0:09:37]}  Ne6 {[%clk 0:00:14]} 59. Kc2 {[%clk 0:09:37]}  f5 {[%clk 0:00:14]} 60. Kd3 {[%clk 0:09:37]}  f4 {[%clk 0:00:14]} 0-1


[Site "http://www.Chess.com"]

[Event "FIDE World Rapid Chess Championship 2021"]
[White "Efimenko, Zahar"]
[Black "Salem, A.R. Saleh"]
[WhiteFideId "14107201"]
[BlackFideId "9301348"]
[WhiteElo "2609"]
[BlackElo "2729"]
[Result "1/2-1/2"]
[Round "08"]
[TimeControl "900+10"]
[Date "2021.12.27"]
[WhiteClock "0:01:13"]
[BlackClock "0:00:20"]

1. Nf3 {[%clk 0:15:00]}  d5 {[%clk 0:15:00]} 2. g3 {[%clk 0:15:00]}  Nf6 {[%clk 0:16:16]} 3. Bg2 {[%clk 0:14:04]}  c5 {[%clk 0:16:16]} 4. O-O {[%clk 0:14:04]}  e6 {[%clk 0:16:16]} 5. c4 {[%clk 0:14:04]}  d4 {[%clk 0:16:16]} 6. e3 {[%clk 0:14:04]}  Nc6 {[%clk 0:16:16]} 7. exd4 {[%clk 0:14:04]}  cxd4 {[%clk 0:16:16]} 8. d3 {[%clk 0:14:04]}  Bd6 {[%clk 0:16:16]} 9. Na3 {[%clk 0:14:04]}  O-O {[%clk 0:16:16]} 10. Nc2 {[%clk 0:14:04]}  e5 {[%clk 0:16:16]} 11. b4 {[%clk 0:14:04]}  Re8 {[%clk 0:16:16]} 12. c5 {[%clk 0:14:04]}  Bf8 {[%clk 0:16:16]} 13. Bg5 {[%clk 0:14:04]}  a6 {[%clk 0:16:16]} 14. Re1 {[%clk 0:14:04]}  Bf5 {[%clk 0:16:16]} 15. Nh4 {[%clk 0:14:04]}  Bd7 {[%clk 0:16:16]} 16. Qf3 {[%clk 0:13:11]}  b6 {[%clk 0:15:56]} 17. cxb6 {[%clk 0:13:11]}  Rb8 {[%clk 0:15:56]} 18. Nf5 {[%clk 0:13:11]}  Re6 {[%clk 0:16:05]} 19. a3 {[%clk 0:10:24]}  Rxb6 {[%clk 0:16:05]} 20. Rac1 {[%clk 0:10:24]}  h6 {[%clk 0:16:05]} 21. Bd2 {[%clk 0:10:24]}  Ne7 {[%clk 0:10:45]} 22. Nxe7+ {[%clk 0:10:46]}  Bxe7 {[%clk 0:09:21]} 23. Qe2 {[%clk 0:07:28]}  Bb5 {[%clk 0:09:29]} 24. f3 {[%clk 0:07:28]}  Bf8 {[%clk 0:08:35]} 25. Na1 {[%clk 0:05:39]}  Ba4 {[%clk 0:08:35]} 26. Bh3 {[%clk 0:05:39]}  Nd5 {[%clk 0:05:54]} 27. Bxe6 {[%clk 0:05:48]}  Rxe6 {[%clk 0:05:54]} 28. Rc4 {[%clk 0:05:48]}  Nb6 {[%clk 0:04:41]} 29. Rcc1 {[%clk 0:04:38]}  f5 {[%clk 0:04:41]} 30. Qf2 {[%clk 0:04:38]}  Qd5 {[%clk 0:04:41]} 31. Nc2 {[%clk 0:04:38]}  Bb5 {[%clk 0:04:41]} 32. Nxd4 {[%clk 0:03:12]}  exd4 {[%clk 0:04:06]} 33. Rxe6 {[%clk 0:03:12]}  Qxe6 {[%clk 0:04:06]} 34. Qxd4 {[%clk 0:03:12]}  Nd7 {[%clk 0:04:06]} 35. Bf4 {[%clk 0:03:12]}  g5 {[%clk 0:04:06]} 36. Bd2 {[%clk 0:01:57]}  Bg7 {[%clk 0:03:33]} 37. Qe3 {[%clk 0:01:57]}  Qd5 {[%clk 0:03:33]} 38. Rc8+ {[%clk 0:01:16]}  Kh7 {[%clk 0:03:33]} 39. Bc3 {[%clk 0:01:16]}  Ne5 {[%clk 0:03:33]} 40. Rc7 {[%clk 0:01:16]}  Nf7 {[%clk 0:03:33]} 41. Bxg7 {[%clk 0:01:13]}  Kxg7 {[%clk 0:00:20]} 42. d4 {[%clk 0:01:13]}  Kg6 {[%clk 0:00:20]} 43. Rc5 {[%clk 0:01:13]}  Qd6 {[%clk 0:00:20]} 44. Kf2 {[%clk 0:01:13]} 1/2-1/2


[Site "http://www.Chess.com"]

[Event "FIDE World Rapid Chess Championship 2021"]
[White "Chigaev, Maksim"]
[Black "Mamedyarov, Shakhriyar"]
[WhiteFideId "4108116"]
[BlackFideId "13401319"]
[WhiteElo "2605"]
[BlackElo "2727"]
[Result "1-0"]
[Round "08"]
[TimeControl "900+10"]
[Date "2021.12.27"]
[WhiteClock "0:00:50"]
[BlackClock "0:00:31"]

1. c4 {[%clk 0:15:00]}  Nf6 {[%clk 0:15:00]} 2. g3 {[%clk 0:14:19]}  g6 {[%clk 0:14:22]} 3. Bg2 {[%clk 0:14:19]}  Bg7 {[%clk 0:14:22]} 4. e4 {[%clk 0:14:19]}  O-O {[%clk 0:14:22]} 5. Nc3 {[%clk 0:14:19]}  c5 {[%clk 0:14:22]} 6. Nge2 {[%clk 0:14:19]}  Nc6 {[%clk 0:14:22]} 7. O-O {[%clk 0:14:19]}  d6 {[%clk 0:14:22]} 8. d3 {[%clk 0:14:19]}  a6 {[%clk 0:14:22]} 9. h3 {[%clk 0:14:19]}  Rb8 {[%clk 0:14:22]} 10. a4 {[%clk 0:14:19]}  Ne8 {[%clk 0:14:22]} 11. Be3 {[%clk 0:14:19]}  Nd4 {[%clk 0:14:22]} 12. Rb1 {[%clk 0:14:19]}  Nc7 {[%clk 0:13:42]} 13. b4 {[%clk 0:14:12]}  Bd7 {[%clk 0:13:42]} 14. bxc5 {[%clk 0:13:49]}  dxc5 {[%clk 0:13:22]} 15. a5 {[%clk 0:13:49]}  Bc6 {[%clk 0:13:29]} 16. Nd5 {[%clk 0:07:28]}  Nxe2+ {[%clk 0:13:29]} 17. Qxe2 {[%clk 0:07:28]}  Ne6 {[%clk 0:13:29]} 18. Qd2 {[%clk 0:07:28]}  Nd4 {[%clk 0:13:29]} 19. Bf4 {[%clk 0:07:28]}  Qd7 {[%clk 0:11:51]} 20. Bxb8 {[%clk 0:06:32]}  Rxb8 {[%clk 0:11:51]} 21. Kh2 {[%clk 0:06:32]}  e6 {[%clk 0:11:51]} 22. Qf4 {[%clk 0:06:32]}  Qd8 {[%clk 0:10:05]} 23. Ne7+ {[%clk 0:05:52]}  Kf8 {[%clk 0:10:05]} 24. Nxc6 {[%clk 0:05:52]}  Nxc6 {[%clk 0:10:05]} 25. Rb6 {[%clk 0:05:52]}  Be5 {[%clk 0:10:05]} 26. Qe3 {[%clk 0:05:52]}  Qe7 {[%clk 0:09:58]} 27. Rfb1 {[%clk 0:04:44]}  Nxa5 {[%clk 0:09:58]} 28. Qd2 {[%clk 0:04:44]}  Nc6 {[%clk 0:07:32]} 29. f4 {[%clk 0:04:24]}  Bc7 {[%clk 0:07:32]} 30. Rxb7 {[%clk 0:04:24]}  Rxb7 {[%clk 0:07:32]} 31. Rxb7 {[%clk 0:04:24]}  Bxf4 {[%clk 0:07:32]} 32. Rxe7 {[%clk 0:03:52]}  Bxd2 {[%clk 0:07:33]} 33. Rc7 {[%clk 0:03:52]}  Ne5 {[%clk 0:07:33]} 34. Rxc5 {[%clk 0:03:52]}  Nxd3 {[%clk 0:07:33]} 35. Rc8+ {[%clk 0:03:52]}  Ke7 {[%clk 0:07:33]} 36. Rc7+ {[%clk 0:03:52]}  Kd6 {[%clk 0:07:33]} 37. Rxf7 {[%clk 0:03:52]}  a5 {[%clk 0:08:13]} 38. Rxh7 {[%clk 0:01:49]}  Nc5 {[%clk 0:08:13]} 39. Ra7 {[%clk 0:01:49]}  Ke5 {[%clk 0:08:13]} 40. h4 {[%clk 0:01:49]}  a4 {[%clk 0:05:42]} 41. Bf3 {[%clk 0:01:14]}  Bc1 {[%clk 0:05:42]} 42. g4 {[%clk 0:01:14]}  Kf4 {[%clk 0:05:01]} 43. Bd1 {[%clk 0:00:38]}  a3 {[%clk 0:05:01]} 44. g5 {[%clk 0:00:38]}  Bb2 {[%clk 0:05:01]} 45. e5 {[%clk 0:00:46]}  Nd3 {[%clk 0:01:54]} 46. Bc2 {[%clk 0:00:46]}  Nxe5 {[%clk 0:01:54]} 47. c5 {[%clk 0:00:46]}  Ke3 {[%clk 0:01:54]} 48. Kh3 {[%clk 0:00:46]}  Kd4 {[%clk 0:01:54]} 49. c6 {[%clk 0:00:46]}  Nxc6 {[%clk 0:01:54]} 50. Ra4+ {[%clk 0:00:46]}  Kc3 {[%clk 0:00:31]} 51. Bxg6 {[%clk 0:00:50]}  Nb4 {[%clk 0:00:31]} 52. Bb1 {[%clk 0:00:50]}  Kb3 {[%clk 0:00:31]} 53. Ra8 {[%clk 0:00:50]}  e5 {[%clk 0:00:31]} 54. h5 {[%clk 0:00:50]}  e4 {[%clk 0:00:31]} 55. Bxe4 {[%clk 0:00:50]}  a2 {[%clk 0:00:31]} 56. Rxa2 {[%clk 0:00:50]}  Kxa2 {[%clk 0:00:31]} 57. h6 {[%clk 0:00:50]} 1-0


[Site "http://www.Chess.com"]

[Event "FIDE World Rapid Chess Championship 2021"]
[White "Indjic, Aleksandar"]
[Black "Onyshchuk, Volodymyr"]
[WhiteFideId "911925"]
[BlackFideId "14114038"]
[WhiteElo "2544"]
[BlackElo "2687"]
[Result "0-1"]
[Round "08"]
[TimeControl "900+10"]
[Date "2021.12.27"]
[WhiteClock "0:00:09"]
[BlackClock "0:06:05"]

1. c4 {[%clk 0:15:00]}  d6 {[%clk 0:15:00]} 2. Nc3 {[%clk 0:15:00]}  g6 {[%clk 0:15:00]} 3. g3 {[%clk 0:15:00]}  Bg7 {[%clk 0:15:00]} 4. Bg2 {[%clk 0:15:41]}  Nf6 {[%clk 0:16:00]} 5. d4 {[%clk 0:15:41]}  O-O {[%clk 0:16:00]} 6. Nf3 {[%clk 0:15:41]}  Nc6 {[%clk 0:16:00]} 7. O-O {[%clk 0:15:41]}  e5 {[%clk 0:16:00]} 8. dxe5 {[%clk 0:15:41]}  dxe5 {[%clk 0:16:00]} 9. Bg5 {[%clk 0:14:40]}  h6 {[%clk 0:16:40]} 10. Qxd8 {[%clk 0:14:40]}  Rxd8 {[%clk 0:16:40]} 11. Bxf6 {[%clk 0:14:40]}  Bxf6 {[%clk 0:16:40]} 12. Nd5 {[%clk 0:14:40]}  Kg7 {[%clk 0:16:40]} 13. Nxc7 {[%clk 0:14:40]}  Rb8 {[%clk 0:16:40]} 14. Nd5 {[%clk 0:13:00]}  e4 {[%clk 0:16:49]} 15. Nd2 {[%clk 0:13:00]}  e3 {[%clk 0:16:49]} 16. fxe3 {[%clk 0:13:00]}  Bxb2 {[%clk 0:16:49]} 17. Rab1 {[%clk 0:13:00]}  Ba3 {[%clk 0:16:49]} 18. Nb3 {[%clk 0:13:00]}  Ne5 {[%clk 0:16:49]} 19. Nd2 {[%clk 0:13:00]}  b6 {[%clk 0:16:40]} 20. Rb3 {[%clk 0:10:00]}  Bf8 {[%clk 0:16:40]} 21. Rc1 {[%clk 0:10:00]}  Be6 {[%clk 0:16:21]} 22. e4 {[%clk 0:08:03]}  Rbc8 {[%clk 0:16:21]} 23. Kf1 {[%clk 0:08:03]}  Rc5 {[%clk 0:16:21]} 24. Rb5 {[%clk 0:07:39]}  Nxc4 {[%clk 0:14:35]} 25. Rxc5 {[%clk 0:07:39]}  Nxd2+ {[%clk 0:14:35]} 26. Ke1 {[%clk 0:07:39]}  Bxc5 {[%clk 0:14:12]} 27. Kxd2 {[%clk 0:05:53]}  f5 {[%clk 0:14:12]} 28. Bh3 {[%clk 0:05:18]}  Bf7 {[%clk 0:12:16]} 29. Ke1 {[%clk 0:03:58]}  fxe4 {[%clk 0:10:47]} 30. Nc3 {[%clk 0:03:58]}  Rd4 {[%clk 0:10:47]} 31. Nb5 {[%clk 0:02:54]}  Ra4 {[%clk 0:09:33]} 32. Kf1 {[%clk 0:02:54]}  a6 {[%clk 0:08:48]} 33. Nc7 {[%clk 0:01:20]}  Kf6 {[%clk 0:08:48]} 34. Bc8 {[%clk 0:01:20]}  Bc4 {[%clk 0:08:48]} 35. Rc2 {[%clk 0:01:18]}  Ke5 {[%clk 0:06:14]} 36. Kg2 {[%clk 0:01:18]}  Kd6 {[%clk 0:06:05]} 37. Ne8+ {[%clk 0:00:09]}  Kc6 {[%clk 0:06:05]} 38. Nf6 {[%clk 0:00:09]}  b5 {[%clk 0:06:05]} 39. Nxe4 {[%clk 0:00:09]} 0-1


[Site "http://www.Chess.com"]